[Event "Late-Titled-Tuesday-Blitz-January-30-2024"]
[Site "Chess.com"]
[Date "2024.01.30"]
[Round "6"]
[White "igorknyazev"]
[Black "subham777"]
[Result "0-1"]
[WhiteElo "2148"]
[BlackElo "2493"]
[TimeControl "180+1"]
[EndTime "15:08:01 PST"]
[Termination "subham777 won by checkmate"]

1. e4 {[%clk 0:03:00.9]} 1... e6 {[%clk 0:02:59.8]} 2. d4 {[%clk 0:02:59.5]}
2... d5 {[%clk 0:02:59.6]} 3. exd5 {[%clk 0:02:55.8]} 3... exd5 {[%clk
0:02:59.9]} 4. Bd3 {[%clk 0:02:55.9]} 4... Nf6 {[%clk 0:03:00.8]} 5. Nf3 {[%clk
0:02:56.1]} 5... Bd6 {[%clk 0:03:01.6]} 6. c4 {[%clk 0:02:55.6]} 6... O-O {[%clk
0:03:02.5]} 7. c5 {[%clk 0:02:55.6]} 7... Re8+ {[%clk 0:03:02.1]} 8. Be3 {[%clk
0:02:55.4]} 8... Bf4 {[%clk 0:03:02.1]} 9. Qd2 {[%clk 0:02:54.3]} 9... Ng4
{[%clk 0:03:00.8]} 10. Ne5 {[%clk 0:02:35.1]} 10... Nxe5 {[%clk 0:02:54.6]} 11.
dxe5 {[%clk 0:02:33.2]} 11... Rxe5 {[%clk 0:02:51.4]} 12. O-O {[%clk 0:02:32.6]}
12... Bxe3 {[%clk 0:02:48.1]} 13. fxe3 {[%clk 0:02:32.3]} 13... Qe7 {[%clk
0:02:48.2]} 14. Nc3 {[%clk 0:02:22.8]} 14... Qxc5 {[%clk 0:02:39.8]} 15. Rf3
{[%clk 0:02:20.5]} 15... c6 {[%clk 0:02:24.7]} 16. Raf1 {[%clk 0:02:19.3]} 16...
Be6 {[%clk 0:02:18.6]} 17. Kh1 {[%clk 0:02:19.9]} 17... Rh5 {[%clk 0:02:10.8]}
18. e4 {[%clk 0:02:14.2]} 18... Nd7 {[%clk 0:01:58.2]} 19. Be2 {[%clk
0:01:54.6]} 19... Qd6 {[%clk 0:01:50]} 20. Rg3 {[%clk 0:01:41.8]} 20... Qxg3
{[%clk 0:01:37.8]} 21. Bxh5 {[%clk 0:01:41]} 21... Qe5 {[%clk 0:01:37.7]} 22.
Bf3 {[%clk 0:01:30]} 22... d4 {[%clk 0:01:28.3]} 23. Ne2 {[%clk 0:01:24.4]}
23... c5 {[%clk 0:01:21.8]} 24. Nf4 {[%clk 0:01:23.6]} 24... Nf6 {[%clk
0:01:08.3]} 25. Nxe6 {[%clk 0:01:16.8]} 25... fxe6 {[%clk 0:01:05.8]} 26. Qd3
{[%clk 0:01:09.8]} 26... a6 {[%clk 0:01:00.1]} 27. a4 {[%clk 0:01:08.9]} 27...
Rf8 {[%clk 0:00:55.4]} 28. Rc1 {[%clk 0:01:04.7]} 28... b6 {[%clk 0:00:40.5]}
29. Qxa6 {[%clk 0:00:56.9]} 29... Qf4 {[%clk 0:00:33]} 30. Re1 {[%clk
0:00:44.9]} 30... Qd2 {[%clk 0:00:25.2]} 31. Qe2 {[%clk 0:00:44.3]} 31... Qxe2
{[%clk 0:00:20.3]} 32. Rxe2 {[%clk 0:00:45.2]} 32... Nd7 {[%clk 0:00:16.4]} 33.
Kg1 {[%clk 0:00:43.6]} 33... Ne5 {[%clk 0:00:16.5]} 34. Kf2 {[%clk 0:00:42.3]}
34... g5 {[%clk 0:00:15.5]} 35. h3 {[%clk 0:00:42]} 35... h5 {[%clk 0:00:15.4]}
36. Kg3 {[%clk 0:00:41.9]} 36... h4+ {[%clk 0:00:15.7]} 37. Kf2 {[%clk
0:00:40.5]} 37... d3 {[%clk 0:00:08.9]} 38. Rd2 {[%clk 0:00:39.9]} 38... c4
{[%clk 0:00:09.3]} 39. Ke3 {[%clk 0:00:38.3]} 39... Nxf3 {[%clk 0:00:09.4]} 40.
gxf3 {[%clk 0:00:38.4]} 40... e5 {[%clk 0:00:09.9]} 41. Rg2 {[%clk 0:00:36.9]}
41... Ra8 {[%clk 0:00:06.8]} 42. Rxg5+ {[%clk 0:00:36.9]} 42... Kf7 {[%clk
0:00:07.6]} 43. Rxe5 {[%clk 0:00:36.7]} 43... Rxa4 {[%clk 0:00:06]} 44. Rb5
{[%clk 0:00:36.5]} 44... Ra1 {[%clk 0:00:06.7]} 45. Rxb6 {[%clk 0:00:35.3]}
45... Re1+ {[%clk 0:00:07.3]} 46. Kd2 {[%clk 0:00:35.8]} 46... Re2+ {[%clk
0:00:07.6]} 47. Kd1 {[%clk 0:00:36.3]} 47... Rc2 {[%clk 0:00:06.1]} 48. Rb4
{[%clk 0:00:34.9]} 48... Ke6 {[%clk 0:00:06]} 49. Rb5 {[%clk 0:00:35.2]} 49...
Kd6 {[%clk 0:00:05.3]} 50. f4 {[%clk 0:00:35.4]} 50... Kc6 {[%clk 0:00:05.5]}
51. Rb8 {[%clk 0:00:34.7]} 51... Kc5 {[%clk 0:00:05.8]} 52. f5 {[%clk
0:00:34.1]} 52... Kd4 {[%clk 0:00:05.8]} 53. e5 {[%clk 0:00:28.9]} 53... Ke3
{[%clk 0:00:02.6]} 54. Ra8 {[%clk 0:00:20.8]} 54... Rf2 {[%clk 0:00:03.5]} 55.
Ke1 {[%clk 0:00:18.9]} 55... d2+ {[%clk 0:00:03.4]} 56. Kd1 {[%clk 0:00:19.8]}
56... Rf1+ {[%clk 0:00:04.3]} 57. Kc2 {[%clk 0:00:20.4]} 57... d1=Q+ {[%clk
0:00:05.1]} 58. Kc3 {[%clk 0:00:21.3]} 58... Qb3# {[%clk 0:00:05.7]} 0-1

[Event "Late-Titled-Tuesday-Blitz-January-30-2024"]
[Site "Chess.com"]
[Date "2024.01.30"]
[Round "6"]
[White "GMG"]
[Black "SantoBlue"]
[Result "0-1"]
[WhiteElo "2810"]
[BlackElo "2979"]
[TimeControl "180+1"]
[EndTime "15:08:02 PST"]
[Termination "SantoBlue won on time"]

1. Nf3 {[%clk 0:02:58.4]} 1... d6 {[%clk 0:03:00.8]} 2. d4 {[%clk 0:02:58.3]}
2... Nf6 {[%clk 0:02:59.5]} 3. c4 {[%clk 0:02:57.8]} 3... g6 {[%clk 0:03:00.1]}
4. g3 {[%clk 0:02:58.2]} 4... Bg7 {[%clk 0:03:00.5]} 5. Bg2 {[%clk 0:02:58.8]}
5... O-O {[%clk 0:02:59.8]} 6. Nc3 {[%clk 0:02:59]} 6... c6 {[%clk 0:02:59.4]}
7. O-O {[%clk 0:02:58.2]} 7... Qb6 {[%clk 0:02:58.1]} 8. Qb3 {[%clk 0:02:53.1]}
8... Qa6 {[%clk 0:02:53.5]} 9. e4 {[%clk 0:02:50]} 9... Bg4 {[%clk 0:02:44.5]}
10. Be3 {[%clk 0:02:46.3]} 10... Bxf3 {[%clk 0:02:38.7]} 11. Bxf3 {[%clk
0:02:47.2]} 11... Nbd7 {[%clk 0:02:37.8]} 12. Be2 {[%clk 0:02:41.2]} 12... c5
{[%clk 0:02:31.8]} 13. d5 {[%clk 0:02:40.8]} 13... h5 {[%clk 0:02:27.5]} 14. h3
{[%clk 0:02:40.6]} 14... Qa5 {[%clk 0:02:13.8]} 15. Kg2 {[%clk 0:02:35.6]} 15...
a6 {[%clk 0:02:12.7]} 16. a4 {[%clk 0:02:24.1]} 16... Qc7 {[%clk 0:02:06.8]} 17.
f4 {[%clk 0:02:22.7]} 17... Nh7 {[%clk 0:01:55.1]} 18. Rad1 {[%clk 0:02:16.7]}
18... Rae8 {[%clk 0:01:43.3]} 19. Qc2 {[%clk 0:02:08]} 19... Qa5 {[%clk
0:01:28.5]} 20. e5 {[%clk 0:02:01]} 20... dxe5 {[%clk 0:01:26.5]} 21. f5 {[%clk
0:02:01.5]} 21... gxf5 {[%clk 0:01:14.3]} 22. Rxf5 {[%clk 0:02:00.4]} 22... Ndf6
{[%clk 0:01:13.5]} 23. Rff1 {[%clk 0:01:07.3]} 23... e6 {[%clk 0:01:10]} 24. d6
{[%clk 0:01:05]} 24... Rd8 {[%clk 0:01:07.1]} 25. g4 {[%clk 0:00:56.3]} 25...
Ne8 {[%clk 0:00:43.6]} 26. Bd3 {[%clk 0:00:45.7]} 26... Nhf6 {[%clk 0:00:33.5]}
27. g5 {[%clk 0:00:46]} 27... Nd7 {[%clk 0:00:34.2]} 28. Bh7+ {[%clk 0:00:43.6]}
28... Kh8 {[%clk 0:00:34.7]} 29. Be4 {[%clk 0:00:43.5]} 29... f5 {[%clk
0:00:33.8]} 30. Qe2 {[%clk 0:00:21.9]} 30... fxe4 {[%clk 0:00:31.5]} 31. Qxh5+
{[%clk 0:00:22]} 31... Kg8 {[%clk 0:00:32.2]} 32. Rxf8+ {[%clk 0:00:21.8]} 32...
Nxf8 {[%clk 0:00:33.1]} 33. Rf1 {[%clk 0:00:16.8]} 33... Nxd6 {[%clk 0:00:28.7]}
34. g6 {[%clk 0:00:13.9]} 34... Qc7 {[%clk 0:00:24.2]} 35. Nxe4 {[%clk
0:00:11.1]} 35... Qc6 {[%clk 0:00:21.2]} 36. Rxf8+ {[%clk 0:00:09.5]} 36... Kxf8
{[%clk 0:00:19.9]} 37. Qf3+ {[%clk 0:00:09.1]} 37... Kg8 {[%clk 0:00:15.2]} 38.
Nxc5 {[%clk 0:00:05.1]} 38... Qxf3+ {[%clk 0:00:14]} 39. Kxf3 {[%clk 0:00:06]}
39... Nxc4 {[%clk 0:00:14.6]} 40. Bf2 {[%clk 0:00:05.7]} 40... Rf8+ {[%clk
0:00:12.2]} 41. Kg2 {[%clk 0:00:05.7]} 41... e4 {[%clk 0:00:12.1]} 42. Nxe4
{[%clk 0:00:05.1]} 42... Nxb2 {[%clk 0:00:11.3]} 43. h4 {[%clk 0:00:05.5]} 43...
Nxa4 {[%clk 0:00:10.5]} 44. h5 {[%clk 0:00:06]} 44... Rf5 {[%clk 0:00:11.1]} 45.
Ng3 {[%clk 0:00:05.9]} 45... Rg5 {[%clk 0:00:11.3]} 46. Be3 {[%clk 0:00:06.4]}
46... Re5 {[%clk 0:00:09.5]} 47. Bf4 {[%clk 0:00:06.2]} 47... Rd5 {[%clk
0:00:06.9]} 48. h6 {[%clk 0:00:06.7]} 48... e5 {[%clk 0:00:06.2]} 49. h7+ {[%clk
0:00:04]} 49... Kh8 {[%clk 0:00:05.8]} 50. Be3 {[%clk 0:00:04.6]} 50... Rd6
{[%clk 0:00:06.1]} 0-1

[Event "Late-Titled-Tuesday-Blitz-January-30-2024"]
[Site "Chess.com"]
[Date "2024.01.30"]
[Round "6"]
[White "aghasiyevkamal"]
[Black "Hrant_ChessMood"]
[Result "1-0"]
[WhiteElo "2672"]
[BlackElo "2894"]
[TimeControl "180+1"]
[EndTime "15:08:06 PST"]
[Termination "aghasiyevkamal won on time"]

1. d4 {[%clk 0:02:57.4]} 1... d5 {[%clk 0:02:57.9]} 2. c4 {[%clk 0:02:56.5]}
2... e6 {[%clk 0:02:58.5]} 3. Nc3 {[%clk 0:02:56.4]} 3... Nf6 {[%clk 0:02:59.1]}
4. cxd5 {[%clk 0:02:53.7]} 4... exd5 {[%clk 0:02:59.5]} 5. Bg5 {[%clk
0:02:53.8]} 5... Be7 {[%clk 0:02:59.6]} 6. e3 {[%clk 0:02:53.7]} 6... O-O {[%clk
0:02:58.8]} 7. Bd3 {[%clk 0:02:53.4]} 7... h6 {[%clk 0:02:57.2]} 8. Bh4 {[%clk
0:02:52.1]} 8... c6 {[%clk 0:02:57.3]} 9. Qc2 {[%clk 0:02:52.2]} 9... Ne8 {[%clk
0:02:57.5]} 10. Bxe7 {[%clk 0:02:45.7]} 10... Qxe7 {[%clk 0:02:58.4]} 11. Nge2
{[%clk 0:02:42.8]} 11... Nd6 {[%clk 0:02:58.6]} 12. O-O {[%clk 0:02:42.5]} 12...
a5 {[%clk 0:02:59.2]} 13. Rae1 {[%clk 0:02:41.9]} 13... Na6 {[%clk 0:02:59.5]}
14. a3 {[%clk 0:02:41.4]} 14... Nc7 {[%clk 0:02:34.9]} 15. Ng3 {[%clk
0:02:37.4]} 15... Be6 {[%clk 0:02:11.1]} 16. f3 {[%clk 0:02:35.9]} 16... Ncb5
{[%clk 0:02:00.5]} 17. Nxb5 {[%clk 0:02:27.9]} 17... Nxb5 {[%clk 0:01:59]} 18.
Bxb5 {[%clk 0:02:25.4]} 18... cxb5 {[%clk 0:01:59.1]} 19. e4 {[%clk 0:02:22.6]}
19... Rfc8 {[%clk 0:01:44.8]} 20. Qd2 {[%clk 0:02:19.3]} 20... Qc7 {[%clk
0:01:36.8]} 21. Rf2 {[%clk 0:02:13.9]} 21... Qc4 {[%clk 0:01:29]} 22. e5 {[%clk
0:02:09.4]} 22... b4 {[%clk 0:01:22.7]} 23. f4 {[%clk 0:02:09.2]} 23... bxa3
{[%clk 0:01:16.6]} 24. f5 {[%clk 0:02:09.2]} 24... a2 {[%clk 0:00:50.8]} 25.
fxe6 {[%clk 0:02:01.1]} 25... fxe6 {[%clk 0:00:51.7]} 26. Nh5 {[%clk 0:01:51.7]}
26... Qa4 {[%clk 0:00:40.6]} 27. Qf4 {[%clk 0:01:31.2]} 27... Rc7 {[%clk
0:00:35.3]} 28. Rff1 {[%clk 0:01:23.6]} 28... Qe8 {[%clk 0:00:21.8]} 29. Qg4
{[%clk 0:01:21.3]} 29... Kh7 {[%clk 0:00:22.3]} 30. Rf6 {[%clk 0:01:07.8]} 30...
Rac8 {[%clk 0:00:20.8]} 31. Rxe6 {[%clk 0:00:56.8]} 31... Qf7 {[%clk 0:00:21]}
32. Nf6+ {[%clk 0:00:28.8]} 32... Kh8 {[%clk 0:00:17.5]} 33. Qf5 {[%clk
0:00:14.5]} 33... gxf6 {[%clk 0:00:16.5]} 34. Rxf6 {[%clk 0:00:14.6]} 34... Qh7
{[%clk 0:00:16.9]} 35. Rf8+ {[%clk 0:00:13.4]} 35... Rxf8 {[%clk 0:00:16.5]} 36.
Qxf8+ {[%clk 0:00:13.6]} 36... Qg8 {[%clk 0:00:15.6]} 37. Qxh6+ {[%clk
0:00:13.8]} 37... Rh7 {[%clk 0:00:16.2]} 38. Qf6+ {[%clk 0:00:13.9]} 38... Rg7
{[%clk 0:00:16.7]} 39. Qh6+ {[%clk 0:00:13.1]} 39... Qh7 {[%clk 0:00:17.3]} 40.
Qxh7+ {[%clk 0:00:12.6]} 40... Kxh7 {[%clk 0:00:15.9]} 41. Ra1 {[%clk
0:00:13.5]} 41... Rc7 {[%clk 0:00:09.4]} 42. Rxa2 {[%clk 0:00:13.4]} 42... b6
{[%clk 0:00:10.1]} 43. b4 {[%clk 0:00:12.6]} 43... axb4 {[%clk 0:00:09.8]} 44.
Ra6 {[%clk 0:00:12.3]} 44... Rc6 {[%clk 0:00:10]} 45. Ra4 {[%clk 0:00:12.6]}
45... Rc4 {[%clk 0:00:09.9]} 46. Ra6 {[%clk 0:00:12.9]} 46... Rc6 {[%clk
0:00:09.9]} 47. Ra4 {[%clk 0:00:12.9]} 47... Rc4 {[%clk 0:00:05.3]} 48. Ra6
{[%clk 0:00:12.9]} 48... Rxd4 {[%clk 0:00:02.7]} 49. Rxb6 {[%clk 0:00:13]} 49...
Re4 {[%clk 0:00:02.2]} 50. Kf2 {[%clk 0:00:12]} 50... Kg7 {[%clk 0:00:02.2]} 51.
Kf3 {[%clk 0:00:12]} 51... Kf7 {[%clk 0:00:02.5]} 52. g4 {[%clk 0:00:11.3]}
52... Rc4 {[%clk 0:00:02.4]} 53. h4 {[%clk 0:00:11.2]} 1-0

[Event "Late-Titled-Tuesday-Blitz-January-30-2024"]
[Site "Chess.com"]
[Date "2024.01.30"]
[Round "6"]
[White "ChristopherYoo"]
[Black "Evgeny81"]
[Result "1-0"]
[WhiteElo "2936"]
[BlackElo "2732"]
[TimeControl "180+1"]
[EndTime "15:08:11 PST"]
[Termination "ChristopherYoo won on time"]

1. d4 {[%clk 0:03:00.9]} 1... Nf6 {[%clk 0:02:57.4]} 2. c4 {[%clk 0:03:01.2]}
2... e6 {[%clk 0:02:57.6]} 3. Nc3 {[%clk 0:03:00.9]} 3... Bb4 {[%clk 0:02:57.5]}
4. a3 {[%clk 0:03:00.9]} 4... Bxc3+ {[%clk 0:02:57.3]} 5. bxc3 {[%clk
0:03:01.8]} 5... O-O {[%clk 0:02:55.8]} 6. Bg5 {[%clk 0:03:01]} 6... h6 {[%clk
0:02:53.8]} 7. Bh4 {[%clk 0:03:01.4]} 7... d6 {[%clk 0:02:54.1]} 8. f3 {[%clk
0:02:57.5]} 8... Nbd7 {[%clk 0:02:47.4]} 9. e4 {[%clk 0:02:57.1]} 9... e5 {[%clk
0:02:47.8]} 10. Bd3 {[%clk 0:02:57.2]} 10... c5 {[%clk 0:02:42.2]} 11. Ne2
{[%clk 0:02:56.6]} 11... cxd4 {[%clk 0:02:30.7]} 12. cxd4 {[%clk 0:02:57]} 12...
exd4 {[%clk 0:02:30.4]} 13. Nxd4 {[%clk 0:02:57.9]} 13... Qa5+ {[%clk
0:02:27.9]} 14. Qd2 {[%clk 0:02:56.4]} 14... Qe5 {[%clk 0:02:26.1]} 15. Be2
{[%clk 0:02:50.1]} 15... Nc5 {[%clk 0:02:13.5]} 16. Bg3 {[%clk 0:02:49.1]} 16...
Qe7 {[%clk 0:02:13]} 17. Nf5 {[%clk 0:02:47.1]} 17... Bxf5 {[%clk 0:02:12.3]}
18. Bxd6 {[%clk 0:02:47.3]} 18... Nfxe4 {[%clk 0:01:45.7]} 19. fxe4 {[%clk
0:02:29.9]} 19... Qh4+ {[%clk 0:01:44.8]} 20. g3 {[%clk 0:02:22.1]} 20... Qxe4
{[%clk 0:01:43.3]} 21. Qd5 {[%clk 0:02:02.4]} 21... Rfe8 {[%clk 0:01:06.9]} 22.
O-O {[%clk 0:02:00.8]} 22... Qxd5 {[%clk 0:00:52.7]} 23. cxd5 {[%clk 0:02:00.2]}
23... Rxe2 {[%clk 0:00:46.7]} 24. Rxf5 {[%clk 0:01:59.6]} 24... Ne4 {[%clk
0:00:44.9]} 25. Re5 {[%clk 0:01:54.9]} 25... Rd8 {[%clk 0:00:29.3]} 26. Bc7
{[%clk 0:01:44.4]} 26... Rd7 {[%clk 0:00:28.6]} 27. Re8+ {[%clk 0:01:42.9]}
27... Kh7 {[%clk 0:00:28.4]} 28. d6 {[%clk 0:01:43.5]} 28... Nxg3 {[%clk
0:00:25.5]} 29. Rd8 {[%clk 0:01:22.5]} 29... Rxd8 {[%clk 0:00:21.5]} 30. Bxd8
{[%clk 0:01:23.4]} 30... Nf5 {[%clk 0:00:16.3]} 31. Rd1 {[%clk 0:01:23.5]} 31...
Nxd6 {[%clk 0:00:07.1]} 32. Rxd6 {[%clk 0:01:23.5]} 32... Ra2 {[%clk 0:00:07]}
33. Rd3 {[%clk 0:01:17.8]} 33... g5 {[%clk 0:00:06.1]} 34. Rd7 {[%clk
0:01:16.1]} 34... Kg6 {[%clk 0:00:05.6]} 35. Be7 {[%clk 0:01:14.6]} 35... Ra1+
{[%clk 0:00:02.3]} 36. Kg2 {[%clk 0:01:14.5]} 36... Ra2+ {[%clk 0:00:02.9]} 37.
Kg3 {[%clk 0:01:15.2]} 37... f5 {[%clk 0:00:03.3]} 38. Rxb7 {[%clk 0:01:11.8]}
38... f4+ {[%clk 0:00:03.7]} 39. Kf3 {[%clk 0:01:12.3]} 39... Kh5 {[%clk
0:00:03.3]} 40. Rxa7 {[%clk 0:01:07.6]} 40... Rxh2 {[%clk 0:00:03]} 41. a4
{[%clk 0:01:08.2]} 41... Rh3+ {[%clk 0:00:02.7]} 42. Kf2 {[%clk 0:01:02.2]}
42... Kg4 {[%clk 0:00:03.6]} 43. Ra6 {[%clk 0:00:55.5]} 43... Rh2+ {[%clk
0:00:03.4]} 44. Kg1 {[%clk 0:00:50.5]} 44... Ra2 {[%clk 0:00:04.3]} 45. Rxh6
{[%clk 0:00:44.9]} 45... Rxa4 {[%clk 0:00:03.4]} 46. Rg6 {[%clk 0:00:41.8]}
46... Ra1+ {[%clk 0:00:03.6]} 47. Kf2 {[%clk 0:00:42.1]} 47... Ra2+ {[%clk
0:00:04.5]} 48. Ke1 {[%clk 0:00:42.5]} 48... Ra1+ {[%clk 0:00:04.5]} 49. Kd2
{[%clk 0:00:41.8]} 49... Ra5 {[%clk 0:00:04.8]} 50. Bf6 {[%clk 0:00:36.4]} 50...
Rd5+ {[%clk 0:00:03.9]} 51. Ke2 {[%clk 0:00:34]} 51... Ra5 {[%clk 0:00:03.7]}
52. Bd8 {[%clk 0:00:31.9]} 52... Ra2+ {[%clk 0:00:03.3]} 53. Kd3 {[%clk
0:00:31.9]} 53... Ra3+ {[%clk 0:00:03.5]} 54. Kd4 {[%clk 0:00:26.3]} 54... Ra4+
{[%clk 0:00:03.2]} 55. Kd3 {[%clk 0:00:17.8]} 55... Ra3+ {[%clk 0:00:03]} 56.
Ke4 {[%clk 0:00:16.7]} 56... Ra4+ {[%clk 0:00:03]} 57. Kd5 {[%clk 0:00:13.1]}
57... f3 {[%clk 0:00:02.8]} 58. Rxg5+ {[%clk 0:00:13]} 58... Kh3 {[%clk
0:00:02.7]} 59. Bb6 {[%clk 0:00:10.9]} 1-0

[Event "Late-Titled-Tuesday-Blitz-January-30-2024"]
[Site "Chess.com"]
[Date "2024.01.30"]
[Round "6"]
[White "MrTattaglia"]
[Black "Szparu"]
[Result "0-1"]
[WhiteElo "2953"]
[BlackElo "2797"]
[TimeControl "180+1"]
[EndTime "15:08:12 PST"]
[Termination "Szparu won by resignation"]

1. d4 {[%clk 0:02:47.6]} 1... d5 {[%clk 0:02:58.9]} 2. c4 {[%clk 0:02:43.3]}
2... e6 {[%clk 0:02:59.3]} 3. Nc3 {[%clk 0:02:43]} 3... Nf6 {[%clk 0:02:59.2]}
4. cxd5 {[%clk 0:02:38.6]} 4... exd5 {[%clk 0:03:00.1]} 5. Bg5 {[%clk
0:02:38.6]} 5... c6 {[%clk 0:02:59.8]} 6. e3 {[%clk 0:02:38.4]} 6... Bd6 {[%clk
0:02:59.7]} 7. Bd3 {[%clk 0:02:36.4]} 7... O-O {[%clk 0:02:59.8]} 8. Qc2 {[%clk
0:02:35.8]} 8... h6 {[%clk 0:03:00.4]} 9. Bh4 {[%clk 0:02:35.4]} 9... Re8 {[%clk
0:03:00.8]} 10. Nge2 {[%clk 0:02:34.1]} 10... a5 {[%clk 0:03:01.1]} 11. a3
{[%clk 0:02:33.8]} 11... Na6 {[%clk 0:03:01.5]} 12. h3 {[%clk 0:02:34]} 12...
Nc7 {[%clk 0:03:01.7]} 13. O-O {[%clk 0:02:30.2]} 13... Ne6 {[%clk 0:03:02]} 14.
Rab1 {[%clk 0:02:28.6]} 14... Bd7 {[%clk 0:02:55.4]} 15. Bg3 {[%clk 0:02:27.6]}
15... Qb8 {[%clk 0:02:51.7]} 16. b4 {[%clk 0:02:26.6]} 16... axb4 {[%clk
0:02:35.6]} 17. axb4 {[%clk 0:02:27.5]} 17... Nh5 {[%clk 0:02:21.1]} 18. Bxd6
{[%clk 0:02:22.6]} 18... Qxd6 {[%clk 0:02:22]} 19. Na4 {[%clk 0:02:13.9]} 19...
Ng5 {[%clk 0:02:21.3]} 20. Nc5 {[%clk 0:02:05.8]} 20... Bc8 {[%clk 0:01:31.4]}
21. f4 {[%clk 0:01:38.3]} 21... Ne6 {[%clk 0:01:23.1]} 22. Qd2 {[%clk
0:01:36.1]} 22... Nf6 {[%clk 0:01:20.7]} 23. Ng3 {[%clk 0:01:31.8]} 23... b6
{[%clk 0:01:11.3]} 24. Nb3 {[%clk 0:01:27.8]} 24... Ba6 {[%clk 0:01:04.9]} 25.
Nf5 {[%clk 0:01:15.1]} 25... Qf8 {[%clk 0:01:05.5]} 26. Nc1 {[%clk 0:01:01.6]}
26... Ne4 {[%clk 0:01:03.5]} 27. Qc2 {[%clk 0:00:54.5]} 27... c5 {[%clk
0:00:40.2]} 28. Bxa6 {[%clk 0:00:47.7]} 28... Rxa6 {[%clk 0:00:40]} 29. dxc5
{[%clk 0:00:48.4]} 29... bxc5 {[%clk 0:00:39.8]} 30. b5 {[%clk 0:00:48.8]} 30...
Ra3 {[%clk 0:00:35.1]} 31. Rb3 {[%clk 0:00:48.1]} 31... c4 {[%clk 0:00:32.3]}
32. Rxa3 {[%clk 0:00:45.5]} 32... Qxa3 {[%clk 0:00:33.2]} 33. Ne2 {[%clk
0:00:45.7]} 33... h5 {[%clk 0:00:17.7]} 34. Qc1 {[%clk 0:00:35.6]} 34... Qd3
{[%clk 0:00:17.3]} 35. Re1 {[%clk 0:00:32.5]} 35... g6 {[%clk 0:00:16.9]} 36.
Nfd4 {[%clk 0:00:31.9]} 36... Nxd4 {[%clk 0:00:12.4]} 37. Nxd4 {[%clk
0:00:32.8]} 37... c3 {[%clk 0:00:11.5]} 38. Qc2 {[%clk 0:00:27.3]} 38... Qc4
{[%clk 0:00:08.5]} 39. b6 {[%clk 0:00:16.8]} 39... Nc5 {[%clk 0:00:04]} 40. Rb1
{[%clk 0:00:16.5]} 40... Rxe3 {[%clk 0:00:02.9]} 41. Nf3 {[%clk 0:00:15.8]}
41... Re7 {[%clk 0:00:02.6]} 42. Ne5 {[%clk 0:00:15.4]} 42... Qxf4 {[%clk
0:00:02.5]} 43. Nxg6 {[%clk 0:00:09.4]} 43... Qe3+ {[%clk 0:00:02.9]} 44. Kh1
{[%clk 0:00:08.9]} 44... fxg6 {[%clk 0:00:03.2]} 45. Qxg6+ {[%clk 0:00:09.3]}
45... Rg7 {[%clk 0:00:03.6]} 46. Qxh5 {[%clk 0:00:07.1]} 46... Qe4 {[%clk
0:00:03.5]} 47. Rg1 {[%clk 0:00:06.4]} 47... c2 {[%clk 0:00:03.6]} 48. Qh6
{[%clk 0:00:06.8]} 48... Nd3 {[%clk 0:00:03.5]} 49. b7 {[%clk 0:00:06.4]} 49...
Rxb7 {[%clk 0:00:03.3]} 50. Qc6 {[%clk 0:00:04]} 50... Rg7 {[%clk 0:00:03.6]}
51. Qxc2 {[%clk 0:00:04.6]} 51... Nf4 {[%clk 0:00:03.7]} 52. Qf2 {[%clk
0:00:02.7]} 52... Nxh3 {[%clk 0:00:03.3]} 53. Qf1 {[%clk 0:00:01.2]} 53... Nxg1
{[%clk 0:00:03.7]} 54. Qxg1 {[%clk 0:00:01.5]} 54... Qh4+ {[%clk 0:00:03.8]} 55.
Qh2 {[%clk 0:00:01.7]} 55... Qxh2+ {[%clk 0:00:04.4]} 56. Kxh2 {[%clk
0:00:01.8]} 56... Rf7 {[%clk 0:00:05.1]} 57. Kg1 {[%clk 0:00:02.7]} 57... Kf8
{[%clk 0:00:05.6]} 0-1